[Event "EICC 2021"]
[Site "Reykjavik"]
[Date "2021.08.30"]
[Round "5.30"]
[White "Pantsulaia, Levan"]
[Black "Thorfinnsson, Bragi"]
[Result "1-0"]
[ECO "A14"]
[WhiteElo "2564"]
[BlackElo "2439"]
[Annotator "ChessBase"]
[PlyCount "105"]
[EventDate "2021.08.26"]
[EventType "swiss"]
[EventCountry "ISL"]
[Tiebreak "Cut1 Buchholz"]
[SourceTitle "playchess.com"]
[Source "ChessBase"]
[SourceQuality "1"]
[TimeControl "40/5400+30:1800+30"]

1. g3 {[%emt 0:00:04]} Nf6 {[%emt 0:03:07]} 2. Bg2 {[%emt 0:00:11]} d5 {
[%emt 0:00:59]} 3. c4 {[%emt 0:00:33]} e6 {[%emt 0:01:19]} 4. Nf3 {[%emt 0:00:
24]} Be7 {[%emt 0:01:55]} 5. O-O {[%emt 0:00:36]} O-O {[%emt 0:00:30]} 6. b3 {
[%emt 0:01:04]} c6 {[%emt 0:05:19]} 7. Bb2 {[%emt 0:01:56]} a5 {[%emt 0:00:44]}
8. Nc3 {[%emt 0:00:40]} Nbd7 {[%emt 0:04:36]} 9. d4 {[%emt 0:02:11]} Rb8 {
[%emt 0:04:58]} 10. Ne5 {[%emt 0:05:20]} Qb6 {[%emt 0:12:30]} 11. Rc1 {[%emt 0:
16:54]} Rd8 {[%emt 0:02:18]} 12. c5 {[%emt 0:03:08]} Qa6 {[%emt 0:06:25]} 13.
f4 {[%emt 0:00:20]} b5 {[%emt 0:03:36]} 14. cxb6 {[%emt 0:02:15]} Nxe5 {
[%emt 0:03:31]} 15. fxe5 {[%emt 0:01:33]} Nd7 {[%emt 0:00:07]} 16. Na4 {
[%emt 0:00:57]} Qb5 {[%emt 0:02:24]} 17. e4 {[%emt 0:18:52]} Nxb6 {[%emt 0:03:
03]} 18. Nc3 {[%emt 0:00:39]} Qa6 {[%emt 0:00:41]} 19. Rc2 {[%emt 0:00:05]} Bd7
{[%emt 0:03:12]} 20. Rcf2 {[%emt 0:01:26]} Rf8 {[%emt 0:02:25]} 21. Ne2 {
[%emt 0:02:47]} dxe4 {[%emt 0:07:44]} 22. Bxe4 {[%emt 0:01:22]} Nd5 {[%emt 0:
00:15]} 23. Bc1 {[%emt 0:01:35]} c5 {[%emt 0:09:03]} 24. Qc2 {[%emt 0:04:42]}
Bb5 {[%emt 0:04:58]} 25. Bxh7+ {[%emt 0:02:39]} Kh8 {[%emt 0:00:03]} 26. Rxf7 {
[%emt 0:00:59]} Rxf7 {[%emt 0:04:42]} 27. Rxf7 {[%emt 0:00:22]} Be8 {[%emt 0:
00:40]} 28. Bd3 {[%emt 0:20:10]} Qa7 {[%emt 0:02:16]} 29. Rf2 {[%emt 0:02:02]}
cxd4 {[%emt 0:01:24]} 30. Nf4 {[%emt 0:00:10]} Ne3 {[%emt 0:03:31]} 31. Qe2 {
[%emt 0:02:46]} Qc5 {[%emt 0:00:09]} 32. Bb2 {[%emt 0:00:21]} Qxe5 {[%emt 0:00:
58]} 33. Qf3 {[%emt 0:00:20]} Bf6 {[%emt 0:02:13]} 34. Bg6 {[%emt 0:01:13]} Kg8
{[%emt 0:01:05]} 35. Rd2 {[%emt 0:00:56]} Bxg6 {[%emt 0:03:10]} 36. Bxd4 {
[%emt 0:03:43]} Qc7 {[%emt 0:00:03]} 37. Bxe3 {[%emt 0:02:29]} Bf7 {[%emt 0:00:
52]} 38. Qe4 {[%emt 0:00:40]} Re8 {[%emt 0:02:04]} 39. Rc2 {[%emt 0:00:54]} Qd7
{[%emt 0:00:12]} 40. Rd2 {[%emt 0:00:15]} Qc7 {[%emt 0:00:12]} 41. h4 {[%emt 0:
03:32]} Be5 {[%emt 0:05:10]} 42. Kh2 {[%emt 0:01:57]} Bxf4 {[%emt 0:03:17]} 43.
Bxf4 {[%emt 0:06:46]} e5 {[%emt 0:00:42]} 44. Be3 {[%emt 0:00:11]} Qc3 {
[%emt 0:02:24]} 45. g4 {[%emt 0:00:55]} Be6 {[%emt 0:03:50]} 46. h5 {[%emt 0:
05:01]} Qb4 {[%emt 0:02:38]} 47. Qxb4 {[%emt 0:01:01]} axb4 {[%emt 0:00:02]}
48. Kg3 {[%emt 0:01:34]} Rc8 {[%emt 0:00:34]} 49. g5 {[%emt 0:00:13]} Bf5 {
[%emt 0:01:35]} 50. g6 {[%emt 0:00:23]} Bb1 {[%emt 0:00:26]} 51. Bc5 {[%emt 0:
00:55]} Ra8 {[%emt 0:01:04]} 52. Bxb4 {[%emt 0:00:37]} Bxa2 {[%emt 0:00:04]}
53. Rb2 {[%emt 0:00:12]} 1-0

[Event "EICC 2021"]
[Site "Reykjavik"]
[Date "2021.08.30"]
[Round "5.31"]
[White "Sanal, Vahap"]
[Black "Lubbe, Nikolas"]
[Result "1-0"]
[ECO "B23"]
[WhiteElo "2557"]
[BlackElo "2427"]
[Annotator "ChessBase"]
[PlyCount "45"]
[EventDate "2021.08.26"]
[EventType "swiss"]
[EventCountry "ISL"]
[Tiebreak "Cut1 Buchholz"]
[SourceTitle "playchess.com"]
[Source "ChessBase"]
[SourceQuality "1"]
[TimeControl "40/5400+30:1800+30"]

1. e4 {[%emt 0:00:04]} c5 {[%emt 0:00:11]} 2. Nc3 {[%emt 0:00:07]} e6 {[%emt 0:
00:31]} 3. g3 {[%emt 0:01:43]} d5 {[%emt 0:02:20]} 4. Bg2 {[%emt 0:00:11]} d4 {
[%emt 0:00:31]} 5. Nce2 {[%emt 0:00:07]} e5 {[%emt 0:01:12]} 6. d3 {[%emt 0:00:
08]} Bd6 {[%emt 0:00:41]} 7. f4 {[%emt 0:00:29]} Nc6 {[%emt 0:01:07]} 8. Nf3 {
[%emt 0:00:08]} Nge7 {[%emt 0:02:42]} 9. O-O {[%emt 0:00:21]} exf4 {[%emt 0:02:
09]} 10. gxf4 {[%emt 0:04:43]} f5 {[%emt 0:01:04]} 11. c3 {[%emt 0:04:45]} dxc3
{[%emt 0:16:11]} 12. Nxc3 {[%emt 0:03:24]} O-O {[%emt 0:28:50]} 13. Qb3+ {
[%emt 0:23:15]} Kh8 {[%emt 0:00:10]} 14. Ng5 {[%emt 0:03:53]} Qe8 {[%emt 0:04:
35]} 15. Be3 {[%emt 0:04:14]} fxe4 {[%emt 0:06:41]} 16. Nb5 {[%emt 0:04:03]}
Bb8 {[%emt 0:04:29]} 17. Bxc5 {[%emt 0:00:31]} Qg6 {[%emt 0:07:18]} 18. Qa3 {
[%emt 0:19:49]} Rf5 {[%emt 0:08:53]} 19. Bxe7 {[%emt 0:08:23]} Rxb5 {[%emt 0:
00:14]} 20. dxe4 {[%emt 0:05:36]} Bc7 {[%emt 0:02:38]} 21. Bd8 {[%emt 0:02:22]}
Kg8 {[%emt 0:05:14]} 22. Bxc7 {[%emt 0:00:20]} h6 {[%emt 0:00:06]} 23. Nf3 {
[%emt 0:02:06]} 1-0

[Event "EICC 2021"]
[Site "Reykjavik"]
[Date "2021.08.30"]
[Round "5.33"]
[White "Kacharava, Nikolozi"]
[Black "Martinovic, Sasa"]
[Result "1-0"]
[ECO "B90"]
[WhiteElo "2453"]
[BlackElo "2548"]
[Annotator "RC"]
[PlyCount "77"]
[EventDate "2021.08.26"]
[EventType "swiss"]
[EventCountry "ISL"]
[Tiebreak "Cut1 Buchholz"]
[SourceTitle "playchess.com"]
[Source "ChessBase"]
[SourceQuality "1"]
[TimeControl "40/5400+30:1800+30"]

1. e4 {[%emt 0:00:25]} c5 {[%emt 0:00:04]} 2. Nf3 {[%emt 0:00:32]} d6 {[%emt 0:
00:04]} 3. d4 {[%emt 0:00:35]} cxd4 {[%emt 0:00:03]} 4. Nxd4 {[%emt 0:00:27]}
Nf6 {[%emt 0:00:05]} 5. Nc3 {[%emt 0:00:42]} a6 {[%emt 0:00:03]} 6. h3 {
[%emt 0:00:38]} e5 {[%emt 0:00:06]} 7. Nb3 {[%emt 0:00:35]} Be7 {[%emt 0:00:08]
} 8. Be3 {[%emt 0:00:28]} h6 {[%emt 0:00:17]} 9. g4 {[%emt 0:06:36]} b5 {
[%emt 0:00:37]} 10. Qf3 {[%emt 0:02:51]} Qc7 {[%emt 0:01:35]} 11. O-O-O {
[%emt 0:04:19]} b4 {[%emt 0:00:27]} 12. Nd5 {[%emt 0:00:24]} Nxd5 {[%emt 0:00:
06]} 13. exd5 {[%emt 0:00:09]} a5 {[%emt 0:00:38]} 14. Nd2 {[%emt 0:02:50]} a4
{[%emt 0:03:23]} 15. Nc4 {[%emt 0:04:08]} Nd7 {[%emt 0:06:02]} 16. Kb1 {
[%emt 0:04:04]} Ba6 {[%emt 0:32:22]} 17. b3 {[%emt 0:00:57]} Bh4 {[%emt 0:01:
18]} 18. Rg1 {[%emt 0:09:54]} Bg5 {[%emt 0:03:51]} 19. h4 {[%emt 0:09:33]} Bxe3
{[%emt 0:00:04]} 20. fxe3 {[%emt 0:04:57]} Nb6 {[%emt 0:04:50]} 21. Nxb6 {
[%emt 0:02:23]} Qxb6 {[%emt 0:00:19]} 22. g5 {[%emt 0:02:38]} h5 {[%emt 0:08:
54]} 23. g6 {[%emt 0:01:26]} f6 {[%emt 0:00:12]} 24. Bxa6 {[%emt 0:06:28]} Qxa6
{[%emt 0:01:02]} 25. Rd2 {[%emt 0:01:38]} Ke7 {[%emt 0:01:57]} 26. Rgg2 {
[%emt 0:05:26]} Ra7 {[%emt 0:15:30]} 27. Rd1 {[%emt 0:06:04]} Rc8 {[%emt 0:09:
43]} 28. Qxh5 {[%emt 0:03:45]} axb3 {[%emt 0:07:04]} 29. cxb3 {[%emt 0:00:04]}
Rc3 {[%emt 0:00:19]} 30. Qh8 {[%emt 0:01:36]} Rxb3+ {[%emt 0:03:12]} 31. Ka1 {
[%emt 0:00:01]} Qc4 {[%emt 0:00:34]} 32. Qxg7+ {[%emt 0:00:08]} Kd8 {[%emt 0:
00:20]} 33. Qxf6+ {[%emt 0:01:58]} Kc8 {[%emt 0:00:09]} 34. Qe6+ {[%emt 0:01:
21]} Kc7 {[%emt 0:01:05]} 35. Qe7+ {[%emt 0:00:28]} Kb6 {[%emt 0:01:03]} 36.
Qxd6+ {[%emt 0:00:37]} Ka5 {[%emt 0:00:02]} 37. Qc6 {[%emt 0:01:20]} Qe4 {
[%emt 0:00:52]} 38. axb3 {[%emt 0:00:27]} Qxg2 {[%emt 0:00:22]} 39. Rc1 {
[%emt 0:00:20]} 1-0

[Event "EICC 2021"]
[Site "Reykjavik"]
[Date "2021.08.30"]
[Round "5.34"]
[White "Subelj, Jan"]
[Black "Hillarp Persson, Tiger"]
[Result "1/2-1/2"]
[ECO "B51"]
[WhiteElo "2412"]
[BlackElo "2543"]
[Annotator "ChessBase"]
[PlyCount "42"]
[EventDate "2021.08.26"]
[EventType "swiss"]
[EventCountry "ISL"]
[Tiebreak "Cut1 Buchholz"]
[SourceTitle "playchess.com"]
[Source "ChessBase"]
[SourceQuality "1"]
[TimeControl "40/5400+30:1800+30"]

1. e4 {[%emt 0:00:06]} c5 {[%emt 0:00:12]} 2. Nf3 {[%emt 0:00:22]} d6 {[%emt 0:
00:09]} 3. Bb5+ {[%emt 0:00:52]} Nd7 {[%emt 0:00:08]} 4. O-O {[%emt 0:01:13]}
a6 {[%emt 0:00:06]} 5. Bd3 {[%emt 0:00:31]} Ngf6 {[%emt 0:07:20]} 6. Re1 {
[%emt 0:01:00]} e6 {[%emt 0:03:43]} 7. c3 {[%emt 0:01:33]} b5 {[%emt 0:00:54]}
8. Bc2 {[%emt 0:00:31]} c4 {[%emt 0:00:45]} 9. a4 {[%emt 0:00:56]} Bb7 {
[%emt 0:00:34]} 10. d4 {[%emt 0:00:35]} cxd3 {[%emt 0:00:08]} 11. Qxd3 {
[%emt 0:00:23]} Nc5 {[%emt 0:00:51]} 12. Qe2 {[%emt 0:00:08]} bxa4 {[%emt 0:00:
09]} 13. Be3 {[%emt 0:01:07]} Nfd7 {[%emt 0:00:29]} 14. Bxc5 {[%emt 0:00:52]}
Nxc5 {[%emt 0:00:13]} 15. Rxa4 {[%emt 0:00:17]} Be7 {[%emt 0:03:09]} 16. Rd4 {
[%emt 0:00:36]} O-O {[%emt 0:03:18]} 17. e5 {[%emt 0:03:29]} Bxf3 {[%emt 0:06:
11]} 18. Qxf3 {[%emt 0:00:49]} d5 {[%emt 0:00:31]} 19. b4 {[%emt 0:10:07]} Nd7
{[%emt 0:00:57]} 20. Qh5 {[%emt 0:01:26]} g6 {[%emt 0:09:43]} 21. Rg4 {[%emt 0:
00:36]} Bf6 {[%emt 0:03:40]} 1/2-1/2

[Event "EICC 2021"]
[Site "Reykjavik"]
[Date "2021.08.30"]
[Round "5.35"]
[White "Basso, Pier Luigi"]
[Black "Stefansson, Vignir Vatnar"]
[Result "1/2-1/2"]
[ECO "D38"]
[WhiteElo "2541"]
[BlackElo "2371"]
[Annotator "ChessBase"]
[PlyCount "95"]
[EventDate "2021.08.26"]
[EventType "swiss"]
[EventCountry "ISL"]
[Tiebreak "Cut1 Buchholz"]
[SourceTitle "playchess.com"]
[Source "ChessBase"]
[SourceQuality "1"]
[TimeControl "40/5400+30:1800+30"]

1. d4 {[%emt 0:04:36]} Nf6 {[%emt 0:01:15]} 2. c4 {[%emt 0:01:22]} e6 {[%emt 0:
00:28]} 3. Nc3 {[%emt 0:00:07]} d5 {[%emt 0:01:03]} 4. cxd5 {[%emt 0:00:06]}
exd5 {[%emt 0:01:19]} 5. Bg5 {[%emt 0:00:06]} Bb4 {[%emt 0:00:53]} 6. Nf3 {
[%emt 0:00:51]} h6 {[%emt 0:00:16]} 7. Bh4 {[%emt 0:00:14]} O-O {[%emt 0:00:11]
} 8. e3 {[%emt 0:00:04]} Bf5 {[%emt 0:00:08]} 9. Be2 {[%emt 0:01:28]} Nbd7 {
[%emt 0:00:21]} 10. Qb3 {[%emt 0:00:21]} Bxc3+ {[%emt 0:00:06]} 11. Qxc3 {
[%emt 0:00:11]} Ne4 {[%emt 0:01:17]} 12. Bxd8 {[%emt 0:39:39]} Nxc3 {[%emt 0:
00:16]} 13. bxc3 {[%emt 0:01:03]} Rfxd8 {[%emt 0:00:08]} 14. Nh4 {[%emt 0:00:
08]} Bh7 {[%emt 0:05:34]} 15. g4 {[%emt 0:00:11]} c5 {[%emt 0:04:57]} 16. Kd2 {
[%emt 0:03:39]} Rac8 {[%emt 0:04:41]} 17. a4 {[%emt 0:04:09]} Rc7 {[%emt 0:19:
50]} 18. a5 {[%emt 0:01:57]} Rdc8 {[%emt 0:00:34]} 19. Ra3 {[%emt 0:02:53]} Nf6
{[%emt 0:05:10]} 20. f3 {[%emt 0:00:50]} g5 {[%emt 0:00:37]} 21. Ng2 {[%emt 0:
01:23]} h5 {[%emt 0:01:09]} 22. h3 {[%emt 0:06:17]} Bg6 {[%emt 0:00:51]} 23.
Ne1 {[%emt 0:02:06]} hxg4 {[%emt 0:08:15]} 24. hxg4 {[%emt 0:00:10]} c4 {
[%emt 0:00:20]} 25. Bd1 {[%emt 0:02:43]} Kg7 {[%emt 0:06:07]} 26. Bc2 {[%emt 0:
02:20]} Rh8 {[%emt 0:15:17]} 27. Rxh8 {[%emt 0:00:16]} Kxh8 {[%emt 0:00:02]}
28. Bxg6 {[%emt 0:06:12]} fxg6 {[%emt 0:00:04]} 29. Ra1 {[%emt 0:00:14]} Kg8 {
[%emt 0:01:46]} 30. Nc2 {[%emt 0:00:46]} Rh7 {[%emt 0:00:19]} 31. Rb1 {[%emt 0:
00:20]} Rh2+ {[%emt 0:03:27]} 32. Kd1 {[%emt 0:00:09]} Rh1+ {[%emt 0:00:04]}
33. Ne1 {[%emt 0:00:06]} Rh7 {[%emt 0:00:04]} 34. Rb5 {[%emt 0:00:26]} Kf8 {
[%emt 0:00:29]} 35. Nc2 {[%emt 0:00:08]} Rd7 {[%emt 0:00:39]} 36. Na3 {[%emt 0:
03:04]} Re7 {[%emt 0:02:16]} 37. Ke2 {[%emt 0:00:59]} Ke8 {[%emt 0:00:22]} 38.
Nb1 {[%emt 0:06:12]} Kf7 {[%emt 0:03:47]} 39. Nd2 {[%emt 0:00:14]} Kg7 {
[%emt 0:00:19]} 40. Kf2 {[%emt 0:02:53]} Kh6 {[%emt 0:02:25]} 41. e4 {[%emt 0:
37:38]} dxe4 {[%emt 0:30:37]} 42. Nxe4 {[%emt 0:01:42]} Nxe4+ 43. fxe4 {
[%emt 0:00:25]} Rxe4 {[%emt 0:02:53]} 44. Rxb7 {[%emt 0:00:09]} Rf4+ {[%emt 0:
00:04]} 45. Kg3 {[%emt 0:00:00]} Re4 {[%emt 0:00:00]} 46. Rxa7 {[%emt 0:00:00]}
Re3+ {[%emt 0:00:00]} 47. Kf2 {[%emt 0:00:00]} Re2+ {[%emt 0:00:00]} 48. Kxe2 {
[%emt 0:00:00]} 1/2-1/2

[Event "EICC 2021"]
[Site "Reykjavik"]
[Date "2021.08.30"]
[Round "5.36"]
[White "Sousa, Andre Ventura"]
[Black "Suleymanli, Aydin"]
[Result "1-0"]
[ECO "B18"]
[WhiteElo "2405"]
[BlackElo "2536"]
[Annotator "ChessBase"]
[PlyCount "59"]
[EventDate "2021.08.26"]
[EventType "swiss"]
[EventCountry "ISL"]
[Tiebreak "Cut1 Buchholz"]
[SourceTitle "playchess.com"]
[Source "ChessBase"]
[SourceQuality "1"]
[TimeControl "40/5400+30:1800+30"]

1. e4 {[%emt 0:00:02]} c6 {[%emt 0:00:05]} 2. d4 {[%emt 0:00:06]} d5 {[%emt 0:
00:04]} 3. Nd2 {[%emt 0:00:03]} dxe4 {[%emt 0:00:13]} 4. Nxe4 {[%emt 0:00:05]}
Bf5 {[%emt 0:00:06]} 5. Qf3 {[%emt 0:00:04]} e6 {[%emt 0:00:34]} 6. Ne2 {
[%emt 0:00:04]} Nd7 {[%emt 0:01:17]} 7. N2g3 {[%emt 0:00:10]} g6 {[%emt 0:00:
59]} 8. c3 {[%emt 0:02:08]} Ndf6 {[%emt 0:05:24]} 9. Bc4 {[%emt 0:09:20]} Nd5 {
[%emt 0:05:00]} 10. Bg5 {[%emt 0:04:35]} Be7 {[%emt 0:01:53]} 11. Bxe7 {
[%emt 0:04:49]} Qxe7 {[%emt 0:00:39]} 12. O-O {[%emt 0:05:21]} Kf8 {[%emt 0:05:
20]} 13. Rfe1 {[%emt 0:06:05]} Rd8 {[%emt 0:02:59]} 14. Bb3 {[%emt 0:07:50]} h5
{[%emt 0:19:01]} 15. h3 {[%emt 0:15:13]} h4 {[%emt 0:03:39]} 16. Nxf5 {[%emt 0:
00:31]} gxf5 {[%emt 0:01:18]} 17. Nc5 {[%emt 0:00:19]} Rh6 {[%emt 0:01:56]} 18.
Rad1 {[%emt 0:04:44]} Ngf6 {[%emt 0:10:09]} 19. c4 {[%emt 0:04:22]} Nb6 {
[%emt 0:00:06]} 20. a4 {[%emt 0:02:19]} Rg6 {[%emt 0:04:35]} 21. a5 {[%emt 0:
00:49]} Nbd7 {[%emt 0:00:15]} 22. Nxb7 {[%emt 0:00:55]} Rb8 {[%emt 0:00:07]}
23. a6 {[%emt 0:00:28]} Qb4 {[%emt 0:06:07]} 24. d5 {[%emt 0:06:48]} Ne4 {
[%emt 0:11:25]} 25. dxe6 {[%emt 0:00:54]} Rxe6 {[%emt 0:00:15]} 26. Re3 {
[%emt 0:06:50]} Ng5 {[%emt 0:04:27]} 27. Qf4 {[%emt 0:01:46]} Rxe3 {[%emt 0:00:
19]} 28. Qxe3 {[%emt 0:00:41]} Nf6 {[%emt 0:01:47]} 29. Qxg5 {[%emt 0:02:37]}
Qxb3 {[%emt 0:00:06]} 30. Rd4 {[%emt 0:00:37]} 1-0

[Event "EICC 2021"]
[Site "Reykjavik"]
[Date "2021.08.30"]
[Round "5.37"]
[White "Petrov, Martin"]
[Black "D`Costa, Lorin"]
[Result "1/2-1/2"]
[ECO "B12"]
[WhiteElo "2521"]
[BlackElo "2381"]
[Annotator "ChessBase"]
[PlyCount "81"]
[EventDate "2021.08.26"]
[EventType "swiss"]
[EventCountry "ISL"]
[Tiebreak "Cut1 Buchholz"]
[SourceTitle "playchess.com"]
[Source "ChessBase"]
[SourceQuality "1"]
[TimeControl "40/5400+30:1800+30"]

1. e4 {[%emt 0:00:03]} c6 {[%emt 0:01:47]} 2. d4 {[%emt 0:00:39]} d5 {[%emt 0:
00:10]} 3. e5 {[%emt 0:00:28]} Bf5 {[%emt 0:00:24]} 4. Nf3 {[%emt 0:00:27]} e6
{[%emt 0:00:20]} 5. Be2 {[%emt 0:00:08]} Nd7 {[%emt 0:01:04]} 6. O-O {[%emt 0:
00:26]} h6 {[%emt 0:00:51]} 7. a4 {[%emt 0:02:05]} Ne7 {[%emt 0:03:02]} 8. a5 {
[%emt 0:02:28]} a6 {[%emt 0:01:55]} 9. b4 {[%emt 0:02:31]} Nc8 {[%emt 0:18:07]}
10. c3 {[%emt 0:00:06]} Be7 {[%emt 0:00:24]} 11. Nbd2 {[%emt 0:05:42]} Na7 {
[%emt 0:02:00]} 12. Nb3 {[%emt 0:01:40]} Nb5 {[%emt 0:01:44]} 13. Bd2 {[%emt 0:
01:12]} O-O {[%emt 0:12:10]} 14. Ne1 {[%emt 0:09:57]} f6 {[%emt 0:09:14]} 15.
f4 {[%emt 0:00:29]} fxe5 {[%emt 0:14:42]} 16. fxe5 {[%emt 0:01:25]} Bg5 {
[%emt 0:00:38]} 17. c4 {[%emt 0:44:07]} Nc7 {[%emt 0:12:37]} 18. Rc1 {[%emt 0:
01:36]} Qe7 {[%emt 0:02:09]} 19. Bxg5 {[%emt 0:04:59]} Qxg5 {[%emt 0:00:20]}
20. Rc3 {[%emt 0:00:03]} dxc4 {[%emt 0:04:34]} 21. Bxc4 {[%emt 0:03:33]} Rad8 {
[%emt 0:03:06]} 22. Rg3 {[%emt 0:10:19]} Qe7 {[%emt 0:00:51]} 23. Qc1 {[%emt 0:
00:30]} Kh8 {[%emt 0:01:39]} 24. Qc3 {[%emt 0:00:19]} Be4 {[%emt 0:03:03]} 25.
Rxf8+ {[%emt 0:01:30]} Rxf8 {[%emt 0:00:32]} 26. Nd2 {[%emt 0:00:33]} Nd5 {
[%emt 0:02:48]} 27. Bxd5 {[%emt 0:03:26]} Bxd5 {[%emt 0:00:25]} 28. Nef3 {
[%emt 0:00:08]} Rf4 {[%emt 0:01:39]} 29. h3 {[%emt 0:00:10]} Nf8 {[%emt 0:00:
44]} 30. Kh2 {[%emt 0:01:47]} Qf7 {[%emt 0:00:43]} 31. Nc4 {[%emt 0:01:19]}
Bxc4 {[%emt 0:00:47]} 32. Qxc4 {[%emt 0:00:02]} Ng6 {[%emt 0:00:28]} 33. Qc5 {
[%emt 0:01:48]} Ne7 {[%emt 0:00:50]} 34. Qd6 {[%emt 0:00:27]} Nf5 {[%emt 0:01:
09]} 35. Qb8+ {[%emt 0:00:55]} Kh7 {[%emt 0:00:31]} 36. Rg4 {[%emt 0:00:32]}
Rxg4 {[%emt 0:00:30]} 37. hxg4 {[%emt 0:00:04]} Nxd4 {[%emt 0:00:32]} 38. Nxd4
{[%emt 0:00:44]} Qf4+ {[%emt 0:00:04]} 39. Kh3 {[%emt 0:00:36]} Qxd4 {[%emt 0:
00:09]} 40. Qxb7 {[%emt 0:00:05]} Qe3+ {[%emt 0:00:23]} 41. g3 {[%emt 0:30:40]}
1/2-1/2

[Event "EICC 2021"]
[Site "Reykjavik"]
[Date "2021.08.31"]
[Round "6.32"]
[White "Hillarp Persson, Tiger"]
[Black "Juksta, Karolis"]
[Result "1/2-1/2"]
[ECO "A07"]
[WhiteElo "2543"]
[BlackElo "2438"]
[Annotator "ChessBase"]
[PlyCount "101"]
[EventDate "2021.08.26"]
[EventType "swiss"]
[EventCountry "ISL"]
[Tiebreak "Cut1 Buchholz"]
[SourceTitle "playchess.com"]
[Source "ChessBase"]
[SourceQuality "1"]
[TimeControl "40/5400+30:1800+30"]

1. Nf3 {[%emt 0:00:03]} d5 {[%emt 0:00:21]} 2. g3 {[%emt 0:00:09]} Bg4 {
[%emt 0:01:42]} 3. Bg2 {[%emt 0:00:22]} Nd7 {[%emt 0:00:37]} 4. c4 {[%emt 0:04:
34]} e6 {[%emt 0:01:46]} 5. d4 {[%emt 0:03:39]} c6 {[%emt 0:05:46]} 6. Nc3 {
[%emt 0:05:32]} Ngf6 {[%emt 0:09:25]} 7. Qb3 {[%emt 0:03:05]} Qb6 {[%emt 0:01:
59]} 8. c5 {[%emt 0:00:08]} Qa6 {[%emt 0:04:36]} 9. Qd1 {[%emt 0:02:30]} e5 {
[%emt 0:21:14]} 10. Nxe5 {[%emt 0:15:58]} Nxe5 {[%emt 0:00:51]} 11. dxe5 {
[%emt 0:00:10]} Nd7 {[%emt 0:02:44]} 12. Qd4 {[%emt 0:06:09]} Qc4 {[%emt 0:09:
43]} 13. Qxc4 {[%emt 0:01:39]} dxc4 {[%emt 0:00:04]} 14. f4 {[%emt 0:02:19]}
Nxc5 {[%emt 0:12:09]} 15. Be3 {[%emt 0:03:04]} Be6 {[%emt 0:07:22]} 16. O-O {
[%emt 0:21:00]} f5 {[%emt 0:00:35]} 17. exf6 {[%emt 0:01:02]} gxf6 {[%emt 0:00:
05]} 18. f5 {[%emt 0:14:51]} Bf7 {[%emt 0:00:39]} 19. b4 {[%emt 0:00:14]} cxb3
{[%emt 0:03:45]} 20. axb3 {[%emt 0:00:12]} Nxb3 {[%emt 0:01:58]} 21. Rxa7 {
[%emt 0:03:57]} Rxa7 {[%emt 0:00:08]} 22. Bxa7 {[%emt 0:00:05]} Bc5+ {[%emt 0:
02:55]} 23. Bxc5 {[%emt 0:00:11]} Nxc5 {[%emt 0:00:03]} 24. Rc1 {[%emt 0:00:20]
} Ke7 {[%emt 0:06:29]} 25. Kf2 {[%emt 0:00:29]} Rc8 {[%emt 0:01:46]} 26. Ke3 {
[%emt 0:01:04]} b5 {[%emt 0:01:32]} 27. Rb1 {[%emt 0:00:36]} Kd6 {[%emt 0:01:
02]} 28. g4 {[%emt 0:02:33]} Rb8 {[%emt 0:01:41]} 29. Rd1+ {[%emt 0:00:31]} Kc7
{[%emt 0:00:07]} 30. Rc1 {[%emt 0:00:11]} Kb6 {[%emt 0:01:21]} 31. h4 {[%emt 0:
00:34]} h6 {[%emt 0:00:34]} 32. Rb1 {[%emt 0:02:25]} Kc7 {[%emt 0:00:12]} 33.
Rb4 {[%emt 0:00:54]} Bc4 {[%emt 0:00:32]} 34. Ne4 {[%emt 0:00:45]} Nxe4 {
[%emt 0:00:51]} 35. Bxe4 {[%emt 0:00:07]} Rg8 {[%emt 0:00:54]} 36. Bf3 {
[%emt 0:00:26]} Kd6 {[%emt 0:00:28]} 37. Kf4 {[%emt 0:00:06]} Ra8 {[%emt 0:00:
28]} 38. Rb1 {[%emt 0:00:32]} Kc5 {[%emt 0:00:28]} 39. g5 {[%emt 0:00:30]}
hxg5+ {[%emt 0:00:12]} 40. hxg5 {[%emt 0:00:07]} fxg5+ {[%emt 0:00:33]} 41.
Kxg5 {[%emt 0:30:09]} b4 {[%emt 0:21:09]} 42. Bxc6 {[%emt 0:00:00]} Kxc6 {
[%emt 0:02:08]} 43. Rxb4 {[%emt 0:00:00]} Bxe2 {[%emt 0:00:05]} 44. Rd4 {
[%emt 0:00:00]} Bf3 {[%emt 0:01:13]} 45. f6 {[%emt 0:00:00]} Bd5 {[%emt 0:01:
24]} 46. Kg6 {[%emt 0:00:00]} Rd8 {[%emt 0:03:56]} 47. Rf4 {[%emt 0:00:00]} Kd6
{[%emt 0:01:05]} 48. f7 {[%emt 0:00:00]} Rf8 {[%emt 0:00:21]} 49. Rd4 {[%emt 0:
00:00]} Rxf7 {[%emt 0:00:12]} 50. Rxd5+ {[%emt 0:00:00]} Kxd5 {[%emt 0:00:03]}
51. Kxf7 {[%emt 0:00:13]} 1/2-1/2

[Event "EICC 2021"]
[Site "Reykjavik"]
[Date "2021.08.31"]
[Round "6.33"]
[White "Petkov, Momchil"]
[Black "Basso, Pier Luigi"]
[Result "1/2-1/2"]
[ECO "C43"]
[WhiteElo "2443"]
[BlackElo "2541"]
[Annotator "ChessBase"]
[PlyCount "69"]
[EventDate "2021.08.26"]
[EventType "swiss"]
[EventCountry "ISL"]
[Tiebreak "Cut1 Buchholz"]
[SourceTitle "playchess.com"]
[Source "ChessBase"]
[SourceQuality "1"]
[TimeControl "40/5400+30:1800+30"]

1. e4 {[%emt 0:00:08]} e5 {[%emt 0:00:10]} 2. Nf3 {[%emt 0:00:07]} Nf6 {
[%emt 0:00:05]} 3. d4 {[%emt 0:00:18]} Nxe4 {[%emt 0:00:08]} 4. Bd3 {[%emt 0:
00:20]} d5 {[%emt 0:02:11]} 5. Nxe5 {[%emt 0:00:25]} Nd7 {[%emt 0:04:55]} 6.
O-O {[%emt 0:00:33]} Nxe5 {[%emt 0:02:14]} 7. dxe5 {[%emt 0:00:12]} Nc5 {
[%emt 0:01:23]} 8. Be3 {[%emt 0:00:21]} c6 {[%emt 0:02:13]} 9. f4 {[%emt 0:01:
01]} Nxd3 {[%emt 0:01:16]} 10. Qxd3 {[%emt 0:02:37]} g6 {[%emt 0:01:03]} 11.
Nc3 {[%emt 0:01:17]} Qa5 {[%emt 0:04:24]} 12. Ne2 {[%emt 0:31:25]} Bf5 {
[%emt 0:01:08]} 13. Qd1 {[%emt 0:03:42]} O-O-O {[%emt 0:04:49]} 14. Nd4 {
[%emt 0:03:32]} Be4 {[%emt 0:01:07]} 15. Nb3 {[%emt 0:03:48]} Qa4 {[%emt 0:08:
39]} 16. Rf2 {[%emt 0:02:24]} b6 {[%emt 0:04:18]} 17. c3 {[%emt 0:03:42]} Be7 {
[%emt 0:06:10]} 18. Qe2 {[%emt 0:05:00]} h5 {[%emt 0:03:47]} 19. f5 {[%emt 0:
06:35]} Bxf5 {[%emt 0:11:56]} 20. Nd4 {[%emt 0:00:27]} c5 {[%emt 0:15:25]} 21.
Nxf5 {[%emt 0:03:08]} gxf5 {[%emt 0:00:03]} 22. Rxf5 {[%emt 0:00:26]} Rh7 {
[%emt 0:06:21]} 23. Qf3 {[%emt 0:11:38]} Qg4 {[%emt 0:01:12]} 24. Rf1 {[%emt 0:
01:35]} Qxf3 {[%emt 0:00:06]} 25. R1xf3 {[%emt 0:00:13]} d4 {[%emt 0:00:58]}
26. Bd2 {[%emt 0:02:59]} dxc3 {[%emt 0:01:20]} 27. Bxc3 {[%emt 0:00:05]} Rd1+ {
[%emt 0:00:32]} 28. Kf2 {[%emt 0:01:00]} Kd7 {[%emt 0:02:19]} 29. Rxf7 {
[%emt 0:01:28]} Rxf7 {[%emt 0:00:06]} 30. Rxf7 {[%emt 0:00:14]} Ke6 {[%emt 0:
00:25]} 31. Rh7 {[%emt 0:01:41]} b5 {[%emt 0:01:33]} 32. Rh6+ {[%emt 0:03:15]}
Kd5 {[%emt 0:03:59]} 33. Rh7 {[%emt 0:00:56]} Ke6 {[%emt 0:00:04]} 34. Rh6+ {
[%emt 0:00:05]} Kd5 {[%emt 0:03:00]} 35. Rh7 {[%emt 0:03:57]} 1/2-1/2